fUST/lending_fUST_20250309
["ID","MTS","AMOUNT","RATE_DAILY","PERIOD"]
[355677404,1741453751101,-160.0,0.00044631,2]
[355677405,1741453829986,1545.77452537,0.000449,10]
[355677445,1741453832135,-190.0,0.0004499,2]
[355677447,1741453832145,-179.01,0.0004499,30]
[355677449,1741453832155,-434.0,0.00045,120]
[355677451,1741453832164,-470.29581716,0.00045764,2]
[355677453,1741453832174,-824.96993495,0.00046425,28]
[355677455,1741453832183,-600.0,0.00046497,2]
[355677457,1741453832192,-160.0,0.00046519,2]
[355677459,1741453832202,-1860.63424789,0.00046519,2]
[355677461,1741453832213,-302.0,0.00046519,2]
[355677463,1741453832225,-2927.00317772,0.00046519,2]
[355677466,1741453832241,-10466.03657136,0.00046519,2]
[355677468,1741453832250,-151.0,0.00046528,2]
[355677470,1741453832260,-162.545188,0.00046532,2]
[355677472,1741453832269,-6347.39465466,0.00046565,4]
[355677474,1741453832279,-502.67947844,0.00046573,10]
[355677476,1741453832288,-158.7394532,0.00046573,10]
[355677478,1741453832297,-504.45084493,0.00046573,10]
[355677480,1741453832307,-160.74450879,0.00046573,10]
[355677482,1741453832316,-425.6513612,0.00046573,10]
[355677485,1741453832328,-74.3486388,0.00046573,10]
[355677488,1741453832338,-500.0,0.00046573,2]
[355677490,1741453832347,-338.91554705,0.00046574,120]
[355677492,1741453832359,-660.08445295,0.00046574,120]
[355677494,1741453832368,-502.02009408,0.00046575,2]
[355677496,1741453832378,-500.0,0.00046575,120]
[355677498,1741453832388,-500.0,0.00046575,120]
[355677500,1741453832397,-500.0,0.00046575,120]
[355677502,1741453832407,-337.87701125,0.00046575,120]
[355677504,1741453832419,-162.12298875,0.00046575,120]
[355677506,1741453832428,-500.0,0.00046575,120]
[355677508,1741453832438,-274.96431357,0.00046575,120]
[355677510,1741453832450,-248.23568643,0.00046575,120]
[355677512,1741453832462,-500.0,0.00046575,120]
[355677514,1741453832476,-321.09307837,0.00046575,120]
[355677516,1741453832485,-500.0,0.00046575,120]
[355677518,1741453832495,-500.0,0.00046575,120]
[355677520,1741453832506,-500.0,0.00046575,120]
[355677522,1741453832516,-500.0,0.00046575,120]
[355677523,1741453832526,-511.37185429,0.00046575,120]
[355677524,1741453832536,-1004.85,0.00046575,120]
[355677525,1741453832546,-500.0,0.00046575,120]
[355677527,1741453832556,-1758.85,0.00046575,120]
[355677529,1741453832566,-500.0,0.00046575,120]
[355677531,1741453832575,-416.66666667,0.00046575,120]
[355677533,1741453832586,-1160.64,0.00046575,120]
[355677535,1741453832595,-500.0,0.00046575,120]
[355677537,1741453832604,-1586.06,0.00046575,120]
[355677540,1741453832619,-500.0,0.00046575,120]
[355677543,1741453832634,-500.0,0.00046575,120]
[355677545,1741453832644,-500.0,0.00046575,120]
[355677547,1741453832654,-974.03465409,0.00046575,120]
[355678064,1741453837888,-500.0,0.00046524,2]
[355678066,1741453837898,-500.0,0.00046524,2]
[355678068,1741453837907,-500.0,0.00046524,2]
[355678070,1741453837917,-500.0,0.00046524,2]
[355678072,1741453837926,-500.0,0.00046524,2]
[355678074,1741453837936,-500.0,0.00046524,2]
[355678076,1741453837945,-500.0,0.00046524,2]
[355678078,1741453837955,-500.0,0.00046524,2]
[355678080,1741453837964,-500.0,0.00046524,2]
[355678082,1741453837974,-500.0,0.00046524,2]
[355678084,1741453837983,-500.0,0.00046524,2]
[355678086,1741453837992,-500.0,0.00046524,2]
[355678088,1741453838001,-500.0,0.00046524,2]
[355678090,1741453838011,-500.0,0.00046524,2]
[355678092,1741453838020,-500.0,0.00046524,2]
[355678094,1741453838029,-500.0,0.00046524,2]
[355678096,1741453838038,-500.0,0.00046524,2]
[355678098,1741453838048,-500.0,0.00046524,2]
[355678100,1741453838057,-500.0,0.00046524,2]
[355678102,1741453838067,-500.0,0.00046524,2]
[355678104,1741453838076,-500.0,0.00046524,2]
[355678106,1741453838085,-500.0,0.00046524,2]
[355678108,1741453838094,-500.0,0.00046524,2]
[355678110,1741453838103,-500.0,0.00046524,2]
[355678112,1741453838114,-500.0,0.00046524,2]
[355678114,1741453838127,-500.0,0.00046524,2]
[355678116,1741453838136,-500.0,0.00046524,2]
[355678118,1741453838145,-500.0,0.00046524,2]
[355678120,1741453838155,-500.0,0.00046524,2]
[355678122,1741453838164,-500.0,0.00046524,2]
[355678123,1741453838173,-500.0,0.00046524,2]
[355678124,1741453838183,-500.0,0.00046524,2]
[355678125,1741453838192,-500.0,0.00046524,2]
[355678126,1741453838201,-500.0,0.00046524,2]
[355678127,1741453838210,-500.0,0.00046524,2]
[355678128,1741453838220,-500.0,0.00046573,2]
[355678129,1741453838229,-500.0,0.00046573,10]
[355678130,1741453838239,-3109.52534591,0.00046575,120]
[355678131,1741453838248,-500.0,0.00046575,120]
[355678132,1741453838257,-1172.35,0.00046575,120]
[355678133,1741453838267,-278.68219187,0.00046575,120]
[355678134,1741453838276,-4644.62,0.00046575,7]
[355678135,1741453838285,-500.0,0.00046575,120]
[355678136,1741453838294,-630.27,0.00046575,120]
[355678137,1741453838304,-540.4383554,0.00046575,120]
[355678138,1741453838316,-91.5016446,0.00046575,120]
[355678139,1741453838325,-500.0,0.00046575,120]
[355678140,1741453838334,-500.0,0.00046575,120]
[355678141,1741453838343,-500.0,0.00046575,120]
[355678142,1741453838352,-500.0,0.00046575,120]
[355678144,1741453838361,-1000.0,0.00046575,7]
[355678145,1741453838371,-7501.18368314,0.00046575,2]
[355678147,1741453838380,-1191.76,0.00046575,2]
[355678149,1741453838389,-500.0,0.00046575,120]
[355678151,1741453838398,-500.0,0.00046575,120]
[355678153,1741453838407,-500.0,0.00046575,120]
[355678155,1741453838417,-501.4,0.00046575,120]
[355678157,1741453838427,-328.24,0.0004659,10]
[355678159,1741453838436,-232.52,0.00046591,10]
[355678161,1741453838446,-393.89,0.00046591,10]
[355678164,1741453838456,-913.14453504,0.000466,120]
[355678166,1741453838470,-181.22,0.000466,30]
[355678168,1741453838479,-1571.04444243,0.00046601,19]
[355678170,1741453838490,-348.11843904,0.00046749,2]
[355678172,1741453838499,-6347.39465466,0.00046839,4]
[355678174,1741453838509,-500.0,0.00046848,31]
[355678176,1741453838518,-500.0,0.00046848,31]
[355678178,1741453838528,-500.0,0.00046848,31]
[355678179,1741453838539,-500.0,0.00046848,31]
[355678181,1741453838550,-500.0,0.00046848,31]
[355678183,1741453838559,-500.0,0.00046848,31]
[355678185,1741453838568,-500.0,0.00046848,31]
[355678187,1741453838577,-293.43677997,0.00046848,31]
[355678189,1741453838587,-500.0,0.00046849,120]
[355678191,1741453838596,-510.16,0.00046849,120]
[355678193,1741453838605,-500.0,0.00046849,120]
[355678195,1741453838615,-500.0,0.00046849,120]
[355678197,1741453838625,-500.0,0.00046849,120]
[355678199,1741453838634,-497.39980617,0.00046849,120]
[355678201,1741453838644,-500.0,0.00046849,120]
[355678203,1741453838653,-1004.85,0.00046849,120]
[355678205,1741453838663,-500.0,0.00046849,120]
[355678207,1741453838672,-1758.85,0.00046849,120]
[355678209,1741453838682,-500.0,0.00046849,120]
[355678211,1741453838692,-416.66666667,0.00046849,7]
[355678213,1741453838701,-1160.64,0.00046849,120]
[355678215,1741453838710,-1586.06,0.00046849,120]
[355678217,1741453838721,-500.0,0.00046849,120]
[355678219,1741453838730,-500.0,0.00046849,120]
[355678221,1741453838740,-500.0,0.00046849,120]
[355678223,1741453838749,-500.0,0.00046849,120]
[355678225,1741453838759,-4083.56,0.00046849,120]
[355678227,1741453838768,-1172.35,0.00046849,120]
[355678229,1741453838778,-4644.62,0.00046849,7]
[355678231,1741453838787,-500.0,0.00046849,120]
[355678233,1741453838796,-630.27,0.00046849,120]
[355678235,1741453838805,-631.94,0.00046849,120]
[355678237,1741453838815,-500.0,0.00046849,120]
[355678239,1741453838824,-476.10430356,0.00046849,120]
[355678241,1741453838834,-1191.76,0.00046849,2]
[355678243,1741453838843,-500.0,0.00046849,120]
[355678245,1741453838852,-500.0,0.00046849,120]
[355678247,1741453838862,-500.0,0.00046849,120]
[355678249,1741453838871,-501.4,0.00046849,120]
[355678251,1741453838880,-500.0,0.00046873,10]
[355678253,1741453838890,-500.0,0.00046873,10]
[355678255,1741453838899,-416.66666667,0.00046873,10]
[355678257,1741453838908,-501.90324104,0.00046873,10]
[355678259,1741453838917,-500.0,0.00046873,10]
[355678261,1741453838926,-502.69883053,0.00046873,10]
[355678263,1741453838936,-500.03866135,0.00046873,10]
[355678265,1741453838945,-500.0,0.00046873,10]
[355678267,1741453838955,-503.12171407,0.00046873,10]
[355678269,1741453838964,-581.59154163,0.00046873,10]
[355678271,1741453838974,-592.75987409,0.00046873,2]
[355678273,1741453838983,-622.2,0.00047045,2]
[355678275,1741453838993,-163.08,0.00047076,2]
[355678277,1741453839002,-200.0,0.00047122,2]
[355678279,1741453839012,-200.08,0.00047122,2]
[355678281,1741453839021,-500.0,0.00047123,120]
[355678283,1741453839031,-500.0,0.00047123,120]
[355678285,1741453839041,-500.0,0.00047123,120]
[355678287,1741453839050,-500.0,0.00047123,120]
[355678289,1741453839060,-523.82766261,0.00047123,120]
[355678291,1741453839069,-1004.85,0.00047123,120]
[355678293,1741453839079,-632.34026626,0.00047123,120]
[355678295,1741453839088,-1758.85,0.00047123,120]
[355678297,1741453839098,-500.0,0.00047123,120]
[355678299,1741453839107,-1160.64,0.00047123,120]
[355678301,1741453839116,-500.0,0.00047123,120]
[355678303,1741453839126,-1586.06,0.00047123,120]
[355678305,1741453839135,-500.0,0.00047123,120]
[355678307,1741453839144,-500.0,0.00047123,120]
[355678309,1741453839154,-500.0,0.00047123,120]
[355678311,1741453839163,-4083.56,0.00047123,120]
[355678312,1741453839172,-1172.35,0.00047123,120]
[355678314,1741453839181,-4644.62,0.00047123,7]
[355678316,1741453839190,-500.0,0.00047123,120]
[355678318,1741453839201,-630.27,0.00047123,120]
[355678320,1741453839211,-631.94,0.00047123,120]
[355678322,1741453839220,-500.0,0.00047123,120]
[355678324,1741453839229,-1191.76,0.00047123,2]
[355678326,1741453839239,-242.10269091,0.00047123,120]
[355678328,1741453839249,-556.20060776,0.00047123,120]
[355678330,1741453839259,-500.0,0.00047123,120]
[355678332,1741453839268,-501.4,0.00047123,120]
[355678334,1741453839277,-348.11843902,0.00047302,2]
[355678336,1741453839286,-6347.39465466,0.00047377,4]
[355678338,1741453839295,-999.0,0.00047396,120]
[355678340,1741453839304,-500.0,0.00047397,120]
[355678342,1741453839314,-500.0,0.00047397,120]
[355678344,1741453839324,-500.0,0.00047397,120]
[355678346,1741453839333,-500.0,0.00047397,120]
[355678348,1741453839342,-1004.85,0.00047397,120]
[355678350,1741453839351,-1758.85,0.00047397,120]
[355678352,1741453839361,-500.0,0.00047397,120]
[355678354,1741453839370,-1160.64,0.00047397,120]
[355678356,1741453839379,-500.0,0.00047397,120]
[355678358,1741453839388,-1586.06,0.00047397,120]
[355678360,1741453839397,-500.0,0.00047397,120]
[355678362,1741453839406,-500.0,0.00047397,120]
[355678364,1741453839415,-488.12080442,0.00047397,120]
[355678366,1741453839425,-4083.56,0.00047397,120]
[355678368,1741453839434,-1172.35,0.00047397,120]
[355678370,1741453839443,-4644.62,0.00047397,7]
[355678372,1741453839453,-500.0,0.00047397,120]
[355678374,1741453839466,-630.27,0.00047397,120]
[355678376,1741453839478,-631.94,0.00047397,120]
[355678378,1741453839487,-500.0,0.00047397,120]
[355678380,1741453839497,-1191.76,0.00047397,2]
[355678382,1741453839509,-500.0,0.00047397,120]
[355678384,1741453839518,-501.4,0.00047397,120]
[355678386,1741453839528,-500.0,0.0004744,10]
[355678388,1741453839538,-500.0,0.0004744,2]
[355678390,1741453839549,-1100.45,0.000475,30]
[355678392,1741453839558,-1394.19,0.000475,30]
[355678394,1741453839567,-151.0,0.000475,120]
[355678396,1741453839577,-151.0,0.000475,120]
[355678397,1741453839586,-417.351635,0.000475,120]
[355678399,1741453839595,-417.351635,0.000475,120]
[355678401,1741453839605,-151.0,0.000475,120]
[355678403,1741453839614,-645.2214,0.00047593,2]
[355678405,1741453839623,-200.0,0.00047608,120]
[355678407,1741453839633,-6347.39465466,0.00047661,4]
[355678409,1741453839643,-151.0,0.00047671,120]
[355678411,1741453839653,-151.0,0.00047671,120]
[355678413,1741453839663,-417.351635,0.00047671,120]
[355678415,1741453839672,-417.351635,0.00047671,120]
[355678417,1741453839681,-500.0,0.00047671,120]
[355678419,1741453839691,-151.0,0.00047671,120]
[355678421,1741453839700,-500.0,0.00047671,120]
[355678423,1741453839711,-500.0,0.00047671,120]
[355678425,1741453839720,-500.0,0.00047671,120]
[355678427,1741453839729,-1004.85,0.00047671,120]
[355678429,1741453839738,-1758.85,0.00047671,120]
[355678431,1741453839748,-500.0,0.00047671,120]
[355678433,1741453839757,-1160.64,0.00047671,120]
[355678435,1741453839766,-500.0,0.00047671,120]
[355678437,1741453839775,-1586.06,0.00047671,120]
[355678439,1741453839785,-500.0,0.00047671,120]
[355678441,1741453839796,-500.0,0.00047671,120]
[355678443,1741453839806,-4083.56,0.00047671,120]
[355678445,1741453839815,-1172.35,0.00047671,120]
[355678447,1741453839824,-4644.62,0.00047671,7]
[355678449,1741453839834,-500.0,0.00047671,120]
[355678451,1741453839843,-630.27,0.00047671,120]
[355678453,1741453839852,-631.94,0.00047671,120]
[355678455,1741453839863,-500.0,0.00047671,120]
[355678457,1741453839872,-1191.76,0.00047671,2]
[355678459,1741453839885,-500.0,0.00047671,120]
[355678461,1741453839894,-501.4,0.00047671,120]
[355678463,1741453839903,-500.0,0.00047673,10]
[355678465,1741453839912,-500.0,0.00047673,10]
[355678467,1741453839921,-500.0,0.00047673,10]
[355678469,1741453839930,-500.0,0.00047673,10]
[355678471,1741453839940,-500.0,0.00047673,10]
[355678473,1741453839949,-500.0,0.00047673,10]
[355678475,1741453839965,-153.8,0.000477,42]
[355678477,1741453839974,-153.8,0.000477,42]
[355678479,1741453839983,-153.8,0.000477,42]
[355678481,1741453839992,-153.8,0.000477,42]
[355678483,1741453840002,-348.11843902,0.00047855,2]
[355678485,1741453840011,-500.0,0.00047945,120]
[355678487,1741453840021,-500.0,0.00047945,120]
[355678489,1741453840032,-264.01205255,0.00047945,120]
[355678491,1741453840041,-500.0,0.00047945,120]
[355678492,1741453840050,-1004.85,0.00047945,120]
[355678493,1741453840060,-1758.85,0.00047945,120]
[355678494,1741453840070,-500.0,0.00047945,120]
[355678495,1741453840079,-1160.64,0.00047945,120]
[355678496,1741453840088,-500.0,0.00047945,120]
[355678497,1741453840097,-1545.85754434,0.00047945,120]
[355678498,1741453840119,-40.20245566,0.00047945,120]
[355678499,1741453840128,-500.0,0.00047945,120]
[355678500,1741453840138,-500.0,0.00047945,120]
[355678501,1741453840147,-4083.56,0.00047945,120]
[355678502,1741453840157,-1172.35,0.00047945,120]
[355678503,1741453840166,-4644.62,0.00047945,7]
[355678504,1741453840176,-500.0,0.00047945,120]
[355678505,1741453840185,-630.27,0.00047945,120]
[355678506,1741453840195,-631.94,0.00047945,120]
[355678507,1741453840204,-500.0,0.00047945,120]
[355678508,1741453840214,-1191.76,0.00047945,2]
[355678509,1741453840224,-501.4,0.00047945,120]
[355678510,1741453840234,-500.0,0.00047945,120]
[355678511,1741453840243,-181.22,0.0004797,30]
[355678512,1741453840253,-190.0,0.0004799,2]
[355678513,1741453840263,-6347.39465466,0.0004799,4]
[355678514,1741453840272,-155.6453699,0.00047993,30]
[355678515,1741453840281,-153.0,0.00047993,30]
[355678516,1741453840290,-153.0,0.00047993,30]
[355678517,1741453840300,-150.0,0.00048,90]
[355678518,1741453840309,-3199.5337336,0.00048,30]
[355678519,1741453840319,-156.2419655,0.00048018,4]
[355678520,1741453840328,-669.0945918,0.00048141,2]
[355678522,1741453840337,-824.96993489,0.00048207,28]
[355678524,1741453840347,-999.0,0.00048218,120]
[355678526,1741453840356,-500.0,0.00048219,120]
[355678528,1741453840365,-500.0,0.00048219,120]
[355678530,1741453840375,-500.0,0.00048219,120]
[355678532,1741453840385,-1004.85,0.00048219,120]
[355678533,1741453840394,-1758.85,0.00048219,120]
[355678534,1741453840403,-497.24710926,0.00048219,120]
[355678535,1741453840413,-1160.64,0.00048219,120]
[355678536,1741453840513,-500.0,0.00048219,120]
[355678537,1741453840523,-1586.06,0.00048219,120]
[355678538,1741453840533,-500.0,0.00048219,120]
[355678539,1741453840544,-500.0,0.00048219,120]
[355678540,1741453840553,-4083.56,0.00048219,120]
[355678541,1741453840564,-1172.35,0.00048219,120]
[355678542,1741453840573,-4644.62,0.00048219,7]
[355678543,1741453840582,-500.0,0.00048219,120]
[355678544,1741453840591,-630.27,0.00048219,120]
[355678545,1741453840600,-631.94,0.00048219,120]
[355678546,1741453840610,-500.0,0.00048219,120]
[355678547,1741453840619,-1191.76,0.00048219,2]
[355678548,1741453840628,-501.4,0.00048219,120]
[355678549,1741453840638,-500.0,0.00048219,120]
[355678550,1741453840647,-500.0,0.00048222,93]
[355678551,1741453840656,-662.99539416,0.00048284,2]
[355678552,1741453840666,-6825.60766901,0.000483,120]
[355678553,1741453840676,-500.0,0.00048322,90]
[355678554,1741453840685,-150.0,0.00048356,90]
[355678555,1741453840694,-348.11843902,0.00048407,2]
[355678556,1741453840704,-500.0,0.00048422,98]
[355678557,1741453840713,-3193.65050628,0.00048483,4]
[355678558,1741453840727,-625.97698097,0.00048483,4]
[355678559,1741453840739,-918.10186986,0.00048483,4]
[355678560,1741453840914,-22.06461907,0.00048483,4]
[355678561,1741453840926,-1587.60067848,0.00048483,4]
[355678562,1741453840935,-500.0,0.00048493,120]
[355678563,1741453840945,-500.0,0.00048493,120]
[355678564,1741453840955,-500.0,0.00048493,120]
[355678565,1741453840964,-1004.85,0.00048493,120]
[355678566,1741453840974,-94.41179957,0.00048493,120]
[355678963,1741453845969,-500.0,0.00046573,10]
[355678965,1741453845979,-500.0,0.00046575,120]
[355678967,1741453845988,-500.0,0.00046575,120]
[355678969,1741453845997,-500.0,0.00046575,120]
[355678971,1741453846007,-342.24722134,0.00046849,120]
[355678973,1741453846016,-500.0,0.00046849,120]
[355678975,1741453846026,-500.0,0.00047123,120]
[355678977,1741453846035,-571.84297208,0.00047397,120]
[355678979,1741453846044,-191.0,0.00048493,2]
[355678981,1741453846053,-1664.43820043,0.00048493,120]
[355678983,1741453846062,-1160.64,0.00048493,120]
[355678985,1741453846073,-1586.06,0.00048493,120]
[355678987,1741453846082,-500.0,0.00048493,120]
[355678989,1741453846091,-493.9813475,0.00048493,120]
[355678991,1741453846099,-4083.56,0.00048493,120]
[355678993,1741453846109,-1172.35,0.00048493,120]
[355678995,1741453846118,-4644.62,0.00048493,7]
[355678997,1741453846128,-500.0,0.00048493,120]
[355678999,1741453846137,-630.27,0.00048493,120]
[355679001,1741453846146,-631.94,0.00048493,120]
[355679002,1741453846155,-500.0,0.00048493,120]
[355679004,1741453846164,-1191.76,0.00048493,2]
[355679006,1741453846175,-500.0,0.00048493,120]
[355679007,1741453846184,-501.4,0.00048493,120]
[355679009,1741453846193,-151.0,0.000485,120]
[355679011,1741453846202,-293.433076,0.000485,120]
[355679013,1741453846211,-2404.88147527,0.00048505,120]
[355679014,1741453846221,-2730.26400623,0.00048506,120]
[355679016,1741453846231,-2730.26400623,0.00048506,120]
[355679018,1741453846240,-417.351635,0.00048508,120]
[355679020,1741453846250,-417.351635,0.00048508,120]
[355679021,1741453846259,-215.075188,0.00048508,120]
[355679023,1741453846269,-3152.84846827,0.00048512,120]
[355679025,1741453846277,-2424.70152494,0.00048514,120]
[355679027,1741453846287,-2235.07020276,0.00048516,120]
[355679028,1741453846296,-2730.26400623,0.00048519,120]
[355679030,1741453846305,-500.0,0.00048522,99]
[355679032,1741453846314,-6347.39465466,0.00048524,4]
[355679034,1741453846323,-3152.84846827,0.00048534,120]
[355679035,1741453846332,-2424.70152494,0.00048541,120]
[355679037,1741453846341,-3152.84846827,0.00048545,120]
[355679039,1741453846350,-2730.26400623,0.00048545,120]
[355679040,1741453846359,-2235.07020276,0.00048546,120]
[355679042,1741453846368,-2404.88147527,0.00048559,120]
[355679044,1741453846377,-2424.70152494,0.00048561,120]
[355679046,1741453846387,-2404.88147527,0.00048571,120]
[355679047,1741453846395,-500.0,0.00048573,10]
[355679049,1741453846405,-150.0,0.00048573,10]
[355679051,1741453846414,-150.0,0.00048573,3]
[355679052,1741453846423,-2235.07020276,0.00048586,120]
[355679054,1741453846432,-3152.84846827,0.00048588,120]
[355679056,1741453846441,-2235.07020276,0.00048589,120]
[355679058,1741453846451,-2424.70152494,0.00048598,120]
[355679060,1741453846461,-2404.88147527,0.00048599,120]
[355679061,1741453846475,-500.0,0.00048622,90]
[355679063,1741453846484,-443.473,0.00048623,2]
[355679065,1741453846494,-693.8510917,0.00048689,2]
[355679066,1741453846503,-500.0,0.00048722,98]
[355679068,1741453846514,-800.0,0.00048739,14]
[355679070,1741453846523,-273.53,0.00048757,10]
[355679072,1741453846532,-6347.39465466,0.00048757,4]
[355679073,1741453846542,-662.99539417,0.00048759,2]
[355679075,1741453846551,-500.0,0.00048767,120]
[355679077,1741453846560,-500.0,0.00048767,120]
[355679079,1741453846570,-1004.85,0.00048767,120]
[355679081,1741453846580,-800.0,0.00048767,14]
[355679082,1741453846590,-1758.85,0.00048767,120]
[355679084,1741453846599,-1160.64,0.00048767,120]
[355679086,1741453846608,-1586.06,0.00048767,120]
[355679088,1741453846617,-500.0,0.00048767,120]
[355679090,1741453846626,-4083.56,0.00048767,120]
[355679091,1741453846636,-1172.35,0.00048767,120]
[355679093,1741453846645,-4644.62,0.00048767,7]
[355679095,1741453846654,-500.0,0.00048767,120]
[355679096,1741453846663,-630.27,0.00048767,120]
[355679098,1741453846673,-631.94,0.00048767,120]
[355679100,1741453846683,-500.0,0.00048767,120]
[355679102,1741453846692,-1191.76,0.00048767,2]
[355679104,1741453846701,-500.0,0.00048767,120]
[355679106,1741453846710,-501.4,0.00048767,120]
[355679107,1741453846719,-800.0,0.00048768,14]
[355679109,1741453846729,-800.0,0.00048779,14]
[355679111,1741453846739,-13004.30183857,0.000488,7]
[355679715,1741453898442,418.86547463,0.0004,60]
[355679716,1741453898462,243.91452537,0.0004,60]
[355679717,1741453940786,500.0,0.00032,10]
[355679718,1741453941710,500.0,0.00032,10]
[355679719,1741453942210,815.93746829,0.0002801,2]
[355679720,1741453942230,62.4761256,0.0002801,2]
[355679721,1741453943399,500.0,0.00032,10]
[355679722,1741454241261,-1693.64974055,0.00027909,2]
[355679723,1741454241288,-300.0,0.00028009,2]
[355679724,1741454241315,-500.0,0.0002801,2]
[355679725,1741454241345,-500.0,0.0002801,2]
[355679726,1741454241371,-500.0,0.0002801,2]
[355679727,1741454241397,-500.0,0.0002801,2]
[355679728,1741454241424,-646.17661533,0.0002801,2]
[355679729,1741454245217,-500.0,0.0003005,5]
[355679730,1741454245242,-500.0,0.0003005,5]
[355679731,1741454245266,-500.0,0.00030067,5]
[355679732,1741454245290,-639.23073795,0.00030067,5]
[355679733,1741454245327,-500.0,0.00030067,5]
[355679734,1741454245358,-500.0,0.00030067,2]
[355679735,1741454245384,-504.326413,0.00030067,2]
[355679736,1741454245410,-500.0,0.00030067,5]
[355679737,1741454245435,-500.0,0.00030067,5]
[355679738,1741454245460,-500.0,0.00030067,5]
[355679739,1741454245486,-420.0,0.00030249,2]
[355679740,1741454245511,-1546.42547153,0.000309,5]
[355679741,1741454245536,-164.29104045,0.00032,10]
[355679742,1741454245562,-500.0,0.00032,10]
[355679743,1741454245588,-500.0,0.00032,10]
[355679744,1741454245617,-500.0,0.00032,10]
[355679745,1741454245642,-500.0,0.00032,10]
[355679746,1741454245669,-500.0,0.00032,10]
[355679747,1741454245694,-500.0,0.00032,10]
[355679748,1741454245720,-500.0,0.00032,10]
[355679749,1741454245746,-500.0,0.00032,10]
[355679750,1741454245770,-587.0,0.00032669,2]
[355679751,1741454247024,500.0,0.00032,10]
[355679752,1741454247360,500.0,0.00032,10]
[355679753,1741454247742,659.13017037,0.0002801,2]
[355679754,1741454284141,500.0,0.00030067,5]
[355679755,1741454339558,300.0,0.00035,2]
[355679762,1741454418361,597.75,0.00035,60]
[355679769,1741454734124,-250.0,0.00035848,2]
[355679770,1741454734147,-162.575836,0.0003589,2]
[355679771,1741454734169,-510.292768,0.00036676,2]
[355679772,1741454734191,-380.0,0.00036833,2]
[355679773,1741454734216,-300.53321223,0.000369,7]
[355679779,1741454759077,-1194.34474336,0.000369,7]
[355679780,1741454759097,-423.9935,0.00038917,2]
[355679781,1741454759119,-320.4069751,0.00039008,2]
[355679782,1741454774530,156.76527239,0.000348,2]
[355679785,1741454826175,-1233.93948696,0.00039008,2]
[355679787,1741454829108,-1590.95047676,0.00039008,2]
[355679788,1741454837096,-2162.78073267,0.00039008,2]
[355679789,1741454839118,-1185.07341261,0.00039008,2]
[355679790,1741454839142,-178.88088871,0.000397,118]
[355679791,1741454839165,-156.76527239,0.000398,2]
[355679792,1741454839188,-275.0,0.00039867,2]
[355679793,1741454839212,-10000.0,0.00039867,2]
[355679794,1741454839235,-6376.57147138,0.00040331,2]
[355679795,1741454840098,-196.3279709,0.00040331,2]
[355679796,1741454843096,-5996.72528645,0.00040331,2]
[355679797,1741454854095,-1733.76692911,0.00040331,2]
[355679798,1741454854141,-1251.86332297,0.00040331,2]
[355679990,1741454916658,5940.06806645,0.000145,2]
[355680012,1741454917337,1004.11487059,0.000185,2]
[355681554,1741454952073,-241.16286145,0.0003988,2]
[355681555,1741454952095,-259.86728707,0.0004,2]
[355681556,1741454952117,-4618.64373539,0.00040331,2]